bitfinex-derivatives/quotes_SOLF0:USTF0_20250321
["timestamp","ask_amount","ask_price","bid_price","bid_amount"]
[1742582016104,257.56,128.74,128.59,1.55533089]
[1742582016302,2.0217,128.82,128.64,0.05302601]
[1742582016303,0.05896821,128.67,128.64,0.05302601]
[1742582016498,0.05896821,128.67,128.59,1.55533089]
[1742582016703,62.72324253,128.77,128.43,263.0]
[1742582016901,257.3,128.81,128.51,62.72324253]
[1742582017106,1.55279503,128.8,128.52,257.3]
[1742582017304,1.55279503,128.8,128.56,62.72324253]
[1742582017709,1.55279503,128.8,128.67,0.0544729]
[1742582017905,257.3,128.86,128.67,0.0544729]
[1742582018111,1.29132715,128.93,128.81,62.72324253]
[1742582018304,0.28225,129.09,128.91,62.72324253]
[1742582018504,0.28225,129.09,129.0,62.72324253]
[1742582019007,0.28225,129.09,128.95,62.72324253]
[1742582019309,0.05809659,129.06,128.85,62.72324253]
[1742582019503,257.3,129.05,128.8,325.72324253]
[1742582019707,2.0468,129.08,128.89,62.72324253]
[1742582020011,0.28225,129.09,128.89,62.72324253]
[1742582020208,0.28225,129.09,128.94,62.72324253]
[1742582020403,0.05819205,129.0,128.98,0.05610066]
[1742582020806,7.76,129.0,128.8,62.72324253]
[1742582021104,62.72324253,128.99,128.6,325.72324253]
[1742582021305,62.72324253,128.88,128.6,263.0]
[1742582021602,319.60324253,128.87,128.56,519.88]
[1742582021807,62.72324253,128.87,128.63,62.72324253]
[1742582022005,62.72324253,128.78,128.5,325.72324253]
[1742582022208,256.88,128.77,128.54,62.72324253]
[1742582022410,4.127,128.77,128.54,62.72324253]
[1742582022610,256.88,128.76,128.54,62.72324253]
[1742582022811,62.72324253,128.71,128.51,1.55629912]
[1742582023009,258.43400155,128.7,128.46,62.72324253]
[1742582023209,1.5541223,128.69,128.46,62.72324253]
[1742582023516,0.05430092,128.62,128.42,62.72324253]
[1742582023811,62.72324253,128.67,128.42,62.72324253]
[1742582024013,256.78,128.66,128.42,62.72324253]
[1742582024211,256.78,128.66,128.4,62.72324253]
[1742582024512,256.78,128.66,128.45,62.72324253]
[1742582024709,0.04966611,128.54,128.52,0.05895484]
[1742582025013,256.78,128.57,128.41,1.55751109]
[1742582025309,256.78,128.64,128.47,62.72324253]
[1742582025509,62.72324253,128.51,128.1,263.0]
[1742582025705,62.72324253,128.46,128.16,62.72324253]
[1742582026012,256.82,128.45,128.21,62.72324253]
[1742582026206,0.05505485,128.4,128.37,4.701e-05]
[1742582026515,256.82,128.39,128.21,62.72324253]
[1742582027515,62.72324253,128.44,128.21,62.72324253]
[1742582027704,7.7967,128.33,128.17,319.54324253]
[1742582027908,264.6167,128.33,128.17,319.54324253]
[1742582028105,256.82,128.33,128.31,306.14178039]
[1742582028412,7.7997,128.28,128.13,62.72324253]
[1742582028603,256.82,128.33,128.13,62.72324253]
[1742582029007,0.05377479,128.24,128.22,0.05169891]
[1742582029502,256.82,128.33,128.13,62.72324253]
[1742582029706,256.82,128.33,128.22,0.05897025]
[1742582030109,256.82,128.33,128.13,62.72324253]
[1742582030304,1.35728076,128.36,128.21,62.72324253]
[1742582030609,256.96,128.36,128.22,0.05123378]
[1742582030909,256.96,128.36,128.21,62.72324253]
[1742582031702,0.05688962,128.3,128.27,0.0529964]
[1742582031905,7.7992,128.28,128.27,0.0529964]
[1742582032114,7.8,128.3,128.11,62.72324253]
[1742582032315,256.96,128.31,128.26,2.64e-06]
[1742582032511,256.78019764,128.31,128.11,62.72324253]
[1742582032909,256.78019764,128.31,128.15,62.72324253]
[1742582033113,256.78019764,128.31,128.19,62.72324253]
[1742582033611,0.05579634,128.26,128.24,0.05292491]
[1742582033807,257.06,128.25,128.16,1.56054931]
[1742582034214,7.8028,128.22,128.1,62.72324253]
[1742582034411,15.5835,128.41,128.18,62.72324253]
[1742582034616,257.06,128.4,128.22,62.72324253]
[1742582035012,0.05624216,128.32,128.3,0.05186161]
[1742582035217,257.18,128.47,128.3,70.57510414]
[1742582035421,257.18,128.47,128.3,62.72324253]
[1742582036218,62.72324253,128.45,128.22,62.72324253]
[1742582036418,0.05058729,128.4,128.22,62.72324253]
[1742582036620,257.18,128.39,128.22,62.72324253]
[1742582036819,257.18,128.38,128.22,62.72324253]
[1742582037016,257.18,128.37,128.22,62.72324253]
[1742582037220,257.18,128.37,128.26,62.72324253]
[1742582037617,7.85106045,128.33,128.3,0.05496182]
[1742582037817,0.05476045,128.33,128.3,0.05496182]
[1742582038417,7.7973,128.31,128.3,0.05496182]
[1742582038614,0.05476045,128.33,128.3,0.05496182]
[1742582038615,94.03807273,128.37,128.3,0.05496182]
[1742582038916,7.8017,128.24,128.18,10.23321607]
[1742582039220,257.2,128.23,128.2,52.11550032]
[1742582039426,257.2,128.22,128.2,3.2e-07]
[1742582039617,7.8034,128.21,128.2,3.2e-07]
[1742582039817,241.44381866,128.22,128.18,119.59499315]
[1742582040120,233.69650418,128.22,128.19,0.05475233]
[1742582040317,7.804,128.2,128.19,0.05475233]
[1742582040915,233.69650418,128.22,128.13,43.51911672]
[1742582041113,62.72324253,128.16,128.04,408.14731027]
[1742582041322,62.72324253,128.08,128.02,390.49433044]
[1742582041619,7.8144,128.03,128.02,390.49433044]
[1742582041815,257.32,128.1,128.02,390.49433044]
[1742582042017,7.8144,128.03,128.02,390.49433044]
[1742582042324,7.58001127,128.03,128.02,390.49433044]
[1742582042720,7.815,128.02,128.01,0.05568298]
[1742582042922,265.19601425,128.04,127.91,108.81465787]
[1742582043122,257.37601425,128.04,128.03,3.24e-06]
[1742582043321,7.8211,127.92,127.91,108.81465787]
[1742582043525,257.32,127.95,127.87,130.57758944]
[1742582043726,320.04324253,127.94,127.87,130.57758944]
[1742582043916,257.54,127.93,127.87,130.57758944]
[1742582044118,257.54,127.93,127.89,0.05252264]
[1742582044119,0.05058145,127.92,127.89,0.05252264]
[1742582044624,257.54,127.91,127.89,0.05252264]
[1742582044924,125.44648506,127.9,127.7,429.02640539]
[1742582045127,125.44648506,127.9,127.7,468.04640695]
[1742582045128,62.72324253,127.82,127.7,468.04640695]
[1742582045325,1.56384392,127.89,127.72,39.02000156]
[1742582045326,257.54,127.81,127.72,39.02000156]
[1742582045529,257.54,127.8,127.73,39.02000156]
[1742582045719,257.54,127.79,127.72,39.02000156]
[1742582045922,257.54,127.78,127.7,444.62640539]
[1742582046120,257.59657421,127.77,127.74,0.03233707]
[1742582046326,257.54,127.76,127.74,0.03233707]
[1742582046526,257.54,127.76,127.71,9.79268208]
[1742582046727,257.58973484,127.76,127.74,39.05233863]
[1742582046929,257.58973484,127.76,127.75,39.02000156]
[1742582047332,257.58973484,127.76,127.74,0.03233707]
[1742582047532,257.58973484,127.76,127.75,45.03664474]
[1742582047730,257.54,127.76,127.75,45.03664474]
[1742582048033,257.54,127.76,127.75,9.79057494]
[1742582048224,1.56384392,127.89,127.75,48.8105765]
[1742582048225,257.8,127.81,127.75,48.8105765]
[1742582048530,257.8,127.81,127.76,45.03656725]
[1742582048725,0.05883018,127.79,127.76,45.03656725]
[1742582049029,0.05883018,127.79,127.77,25.45546041]
[1742582049223,257.8,127.81,127.77,25.45546041]
[1742582049423,0.05715116,127.79,127.77,25.43526041]
[1742582049728,0.05715116,127.79,127.78,9.79057494]
[1742582050027,1.36254185,127.8,127.78,9.79057494]
[1742582050227,9.24214945,127.8,127.78,9.79057494]
[1742582050726,9.24214945,127.8,127.79,9.79057494]
[1742582050925,1.42214945,127.8,127.79,9.79057494]
[1742582051124,9.18254185,127.8,127.66,7.87824798]
[1742582051329,257.8,127.81,127.74,39.02000156]
[1742582051719,257.8,127.81,127.75,9.79225892]
[1742582052029,0.05094339,127.79,127.75,9.79225892]
[1742582052325,0.05094339,127.79,127.77,39.02000156]
[1742582052529,0.05094339,127.79,127.78,39.02000156]
[1742582052823,0.05904344,127.8,127.78,39.02000156]
[1742582053027,257.82425573,127.87,127.81,39.02000156]
[1742582053225,257.82425573,127.87,127.8,39.02000156]
[1742582053626,257.82425573,127.87,127.71,320.72324253]
[1742582053922,320.54749826,127.87,127.71,15.6]
[1742582054125,62.72324253,127.83,127.72,39.02000156]
[1742582054326,0.0500239,127.8,127.78,0.05487581]
[1742582054522,258.12,127.79,127.78,0.05487581]
[1742582054929,265.94,127.79,127.78,0.05487581]
[1742582057228,258.12,127.79,127.74,39.02000156]
[1742582057931,258.12,127.79,127.67,259.75104379]
[1742582058127,258.12,127.79,127.73,39.02000156]
[1742582058335,0.05858232,127.74,127.71,39.02000156]
[1742582058527,258.12,127.79,127.71,39.02000156]
[1742582058727,0.05193943,127.74,127.67,1.53104379]
[1742582058937,258.22,127.84,127.73,39.02000156]
[1742582059236,258.22,127.84,127.78,39.02000156]
[1742582059526,258.22,127.84,127.68,332.45187127]
[1742582059527,258.22,127.84,127.82,39.02000156]
[1742582060128,258.2784807,127.84,127.82,0.05610707]
[1742582061028,266.0984807,127.84,127.82,0.00900707]
[1742582061233,266.0984807,127.84,127.68,2.0443]
[1742582061429,258.22,127.84,127.72,39.02000156]
[1742582061629,258.22,127.84,127.68,17.6443]
[1742582061827,62.0,127.83,127.78,39.02000156]
[1742582062135,62.0,127.83,127.77,39.02000156]
[1742582062530,0.05753586,127.81,127.78,39.02000156]
[1742582062841,258.22,127.84,127.79,39.02000156]
[1742582063025,258.22,127.84,127.83,0.18196635]
[1742582063433,258.32,127.89,127.83,0.18196635]
[1742582063630,258.32,127.89,127.85,39.02000156]
[1742582064126,258.32,127.89,127.83,0.18196635]
[1742582064127,124.0,127.99,127.83,0.18196635]
[1742582064328,258.32,127.94,127.9,39.02000156]
[1742582064526,0.05863464,127.92,127.88,39.02000156]
[1742582064834,258.32,127.93,127.91,0.05157165]
[1742582065034,258.32,127.93,127.83,0.18196635]
[1742582065035,258.26,127.93,127.83,0.18196635]
[1742582065332,258.31335827,127.93,127.91,0.05284892]
[1742582065636,62.0,127.92,127.9,39.02000156]
[1742582065832,62.0,127.92,127.91,0.05284892]
[1742582066133,62.0,127.92,127.83,0.18196635]
[1742582066338,62.0,127.92,127.9,39.02000156]
[1742582066550,258.26,127.96,127.91,39.02000156]
[1742582066838,258.26,128.05,127.92,9.11299943]
[1742582067035,258.26,128.04,127.96,39.02000156]
[1742582067340,258.26,128.04,127.95,39.02000156]
[1742582067542,62.0,127.98,127.95,39.02000156]
[1742582067743,62.0,127.98,127.87,267.26751657]
[1742582068033,258.26,128.04,127.89,39.02000156]
[1742582068034,258.18,127.97,127.89,39.02000156]
[1742582068237,0.05524072,127.94,127.91,0.0587196]
[1742582068439,258.18,127.96,127.9,39.02000156]
[1742582068634,0.04992146,127.94,127.91,0.05547997]
[1742582069942,0.04992146,127.94,127.85,2.1508]
[1742582070239,258.18,127.96,127.93,39.02000156]
[1742582070637,258.18,127.96,127.85,2.1508]
[1742582070837,258.18,127.96,127.92,39.02000156]
[1742582071038,62.0,127.95,127.93,39.02000156]
[1742582071240,62.05632928,127.95,127.93,39.02000156]
[1742582071440,62.05632928,127.95,127.94,39.02000156]
[1742582071840,62.05632928,127.95,127.93,0.05036843]
[1742582073135,62.05632928,127.95,127.94,39.02000156]
[1742582073342,258.16,128.01,127.94,39.02000156]
[1742582073532,1549.06,128.27,128.04,39.02000156]
[1742582073731,62.72324253,128.17,128.03,39.02000156]
[1742582073940,258.16,128.16,128.03,46.83410156]
[1742582074133,258.16,128.16,127.93,258.16]
[1742582074336,62.0,128.05,127.97,7.8178]
[1742582074636,258.12,128.04,127.98,39.02000156]
[1742582074842,0.05500623,128.02,128.0,0.05766445]
[1742582075040,258.12,128.04,127.91,2.1354]
[1742582075336,258.12,128.09,128.06,7.8124]
[1742582075533,258.12,128.12,128.07,39.02000156]
[1742582075732,258.12,128.12,128.08,39.02000156]
[1742582075937,265.9291,128.12,128.08,46.83090156]
[1742582076134,258.12,128.12,128.08,39.02000156]
[1742582076337,7.8111,128.09,127.97,63.29446157]
[1742582076640,258.12,128.12,128.06,39.02000156]
[1742582077045,0.05730537,128.1,127.98,21.79378934]
[1742582077232,258.12,128.12,128.08,0.05768984]
[1742582077431,258.12,128.12,128.09,0.05871992]
[1742582077637,0.05397128,128.11,128.09,0.05871992]
[1742582077841,62.0,128.1,128.09,0.05871992]
[1742582078346,69.8101,128.1,128.09,0.05871992]
[1742582079835,69.8101,128.1,128.09,1.992e-05]
[1742582080032,77.6101,128.1,128.09,1.992e-05]
[1742582081433,148.00997283,128.1,127.99,21.74483594]
[1742582081741,78.20997283,128.1,128.0,39.02000156]
[1742582081939,7.8159,128.01,127.99,15.6]
[1742582082135,257.96,128.04,128.0,17.83042312]
[1742582082343,257.96,128.08,128.04,39.02000156]
[1742582082640,24.98042755,128.17,128.05,72.16433911]
[1742582082641,1.56042755,128.17,128.05,72.16433911]
[1742582082841,10.28084505,128.28,128.16,39.02000156]
[1742582083041,10.28084505,128.28,128.11,54.48997283]
[1742582083241,6.99834505,128.28,128.27,39.02000156]
[1742582083447,31.91335539,128.3,128.29,46.81850156]
[1742582083746,64.81360482,128.31,128.29,39.10644687]
[1742582083942,40.18650447,128.35,128.34,7.7955]
[1742582084242,299.06337748,128.38,128.34,337.98849821]
[1742582084554,299.06337748,128.38,128.35,39.00358975]
[1742582084750,62.05994915,128.37,128.36,6.77539357]
[1742582085047,15.58430921,128.36,128.35,0.05568658]
[1742582085236,7.79000921,128.36,128.25,13.50436298]
[1742582085435,7.79000921,128.26,128.17,54.2771683]
[1742582085638,265.73000921,128.32,128.22,62.0794683]
[1742582085842,7.79000921,128.31,128.22,62.0794683]
[1742582086039,7.79000921,128.3,128.22,54.2771683]
[1742582086239,7.79000921,128.31,128.23,7.8022]
[1742582086443,0.05994475,128.27,128.25,0.05195521]
[1742582087842,31.21994475,128.27,128.25,0.05195521]
[1742582088145,39.00995396,128.27,128.25,0.05195521]
[1742582088345,69.79000921,128.26,128.13,257.76]
[1742582088642,15.5411,128.76,128.25,3919.42824645]
[1742582088844,314.22682223,128.71,128.48,63.05792275]
[1742582089036,314.22682223,128.71,128.55,63.05792275]
[1742582089238,314.22682223,128.71,128.56,257.76]
[1742582089441,314.22682223,128.71,128.51,63.05792275]
[1742582089638,299.06337748,128.71,128.51,320.69792275]
[1742582089842,0.05980341,128.62,128.6,0.05755763]
[1742582090043,314.22682223,128.71,128.47,63.05792275]
[1742582090044,257.64,128.67,128.47,63.05792275]
[1742582090246,0.05890576,128.62,128.39,63.05792275]
[1742582090442,63.05792275,128.64,128.31,264.91653771]
[1742582090443,7.7869,128.49,128.36,7.7939]
[1742582090649,257.64,128.53,128.35,63.05792275]
[1742582091047,272.80344475,128.53,128.35,63.05792275]
[1742582091453,0.05291151,128.45,128.43,0.05231617]
[1742582091649,23.72,128.65,128.43,63.05792275]
[1742582091851,257.64,128.62,128.43,63.05792275]
[1742582092149,257.64,128.62,128.39,63.05792275]
[1742582092354,272.80344475,128.62,128.41,30.70218166]
[1742582092649,86.77792275,128.6,128.41,30.70218166]
[1742582092850,0.05410205,128.53,128.5,0.05865001]
[1742582093046,7.7852,128.51,128.41,30.70218166]
[1742582093240,7.7852,128.51,128.5,0.05811259]
[1742582093439,22.94864475,128.51,128.41,30.70218166]
[1742582093644,0.05529384,128.52,128.49,0.05587671]
[1742582093843,257.44,128.59,128.43,320.49792275]
[1742582094047,0.05495446,128.52,128.49,0.05577237]
[1742582094249,257.44,128.61,128.43,320.49792275]
[1742582094552,0.05657235,128.52,128.49,0.05181324]
[1742582094742,272.60344475,128.61,128.39,63.05792275]
[1742582094743,62.0,128.51,128.39,63.05792275]
[1742582094947,62.0,128.51,128.35,63.05792275]
[1742582095246,77.16344475,128.51,128.35,63.05792275]
[1742582095446,7.7876,128.47,128.35,63.05792275]
[1742582095953,22.95104475,128.47,128.35,63.05792275]
[1742582096154,0.05798596,128.42,128.4,0.05565279]
[1742582096354,15.16344475,128.47,128.4,0.05565279]
[1742582096554,0.05379377,128.42,128.4,0.05565279]
[1742582096754,4.42393027,128.47,128.4,0.05565279]
[1742582096954,0.05274296,128.42,128.4,0.05565279]
[1742582097154,4.42393027,128.47,128.4,0.05565279]
[1742582097357,0.0586754,128.42,128.4,0.05565279]
[1742582097548,4.42393027,128.47,128.4,0.05565279]
[1742582097754,31.5,128.47,128.27,63.05792275]
[1742582097958,2.068,128.46,128.27,63.05792275]
[1742582098151,2.068,128.46,128.23,63.05792275]
[1742582098350,23.72,128.45,128.23,63.05792275]
[1742582098547,343.97792275,128.44,128.23,63.05792275]
[1742582098955,7.7974,128.31,128.23,63.05792275]
[1742582099148,0.04954519,128.35,128.32,0.05925129]
[1742582099349,4.42393027,128.35,128.23,63.05792275]
[1742582099555,4.42393027,128.35,128.32,0.04951005]
[1742582099755,0.05715903,128.3,128.19,63.05792275]
[1742582100058,4.42393027,128.35,128.23,0.05466899]
[1742582100355,4.42393027,128.35,128.2,257.2]
[1742582100551,7.7988,128.29,128.28,0.0533681]
[1742582100753,62.0,128.34,128.28,0.0533681]
[1742582100957,0.05903236,128.3,128.28,0.0533681]
[1742582101353,7.7985,128.29,128.28,0.0533681]
[1742582101558,4.48296263,128.3,128.2,257.2]
[1742582101857,4.42393027,128.3,128.2,257.2]
[1742582102056,7.7987,128.29,128.2,257.2]
[1742582102360,4.42393027,128.3,128.2,257.2]
[1742582102753,0.05657203,128.26,128.2,257.2]
[1742582103359,4.4805023,128.26,128.15,63.05792275]
[1742582103560,4.42393027,128.26,128.15,63.05792275]
[1742582103758,0.05325055,128.22,128.15,63.05792275]
[1742582104360,0.05325055,128.22,128.12,73.10314765]
[1742582104361,4.47718082,128.22,128.12,73.10314765]
[1742582104555,255.60267274,128.26,128.12,73.10314765]
[1742582104958,255.60267274,128.26,128.12,10.0452249]
[1742582105454,257.26,128.32,128.16,63.13726432]
[1742582105659,0.05741403,128.2,128.18,0.0593043]
[1742582105856,257.26,128.24,128.12,10.0452249]
[1742582106063,0.05259194,128.2,128.18,0.05466197]
[1742582106360,62.0,128.19,128.1,63.13726432]
[1742582106654,7.8067,128.16,128.1,63.13726432]
[1742582106860,257.26,128.22,128.1,63.13726432]
[1742582107068,257.26,128.23,128.1,63.13726432]
[1742582107259,7.8062,128.17,128.1,54.39712141]
[1742582107562,62.0,128.16,128.1,54.39712141]
[1742582107758,4.2181,128.22,128.1,54.39712141]
[1742582107958,4.2181,128.22,128.07,54.39712141]
[1742582108353,27.9381,128.22,128.07,54.39712141]
[1742582108658,23.72,128.2,128.04,40.74740656]
[1742582108854,62.0,128.16,128.04,40.74740656]
[1742582109160,0.05981806,128.13,128.11,0.04989203]
[1742582109354,0.05981806,128.13,128.08,54.39712141]
[1742582109557,257.32,128.15,128.11,0.05202989]
[1742582109757,0.05448427,128.12,128.11,0.05202989]
[1742582109954,180.65437571,128.15,128.11,0.05202989]
[1742582110559,7.8081,128.14,128.11,0.05202989]
[1742582110960,180.65437571,128.15,128.11,0.05202989]
[1742582111161,0.05090578,128.14,128.11,0.05202989]
[1742582111355,257.42,128.2,128.09,54.39712141]
[1742582111558,0.05971585,128.14,128.11,0.05860578]
[1742582111862,7.8077,128.14,128.06,54.39712141]
[1742582112064,0.05076005,128.14,128.11,0.05412262]
[1742582112360,0.05027934,128.14,128.11,0.05412262]
[1742582112963,257.47027934,128.14,128.03,54.39712141]
[1742582113262,257.42,128.14,128.03,54.39712141]
[1742582113461,7.8102,128.1,128.03,54.39712141]
[1742582113662,257.42,128.14,128.03,54.39712141]
[1742582113861,257.42,128.14,128.06,7.8124]
[1742582114061,257.42,128.14,128.03,54.39712141]
[1742582114264,0.05957453,128.11,128.09,0.05017838]
[1742582114659,0.05957453,128.11,128.01,54.39712141]
[1742582114857,257.42,128.14,127.98,54.39712141]
[1742582115058,257.42,128.14,128.0,7.8158]
[1742582115661,7.86441922,128.08,128.01,7.8155]
[1742582116065,7.86411922,128.08,128.01,7.8155]
[1742582116264,7.86411922,128.08,128.0,7.816]
[1742582116466,7.8114,128.08,128.0,7.816]
[1742582116662,0.05091463,128.05,127.98,54.39712141]
[1742582116864,0.05091463,128.05,127.99,6.55663271]
[1742582117064,0.05091463,128.05,128.01,7.8151]
[1742582117261,257.58,128.19,128.04,54.39712141]
[1742582117560,356.0,128.29,128.1,54.39712141]
[1742582117561,257.58,128.24,128.1,54.39712141]
[1742582117765,7.8047,128.19,128.12,7.8088]
[1742582117960,257.58,128.18,128.07,54.39712141]
[1742582118159,257.58,128.18,128.04,1.56201187]
[1742582118366,0.05999169,128.12,128.1,0.05367173]
[1742582118564,257.58,128.18,128.05,10.49784416]
[1742582118760,0.05321528,128.12,128.1,0.05666049]
[1742582118962,257.58,128.18,128.09,54.39712141]
[1742582119161,0.05759532,128.12,128.1,0.05769938]
[1742582119356,257.58,128.18,128.09,54.39712141]
[1742582119562,257.58,128.18,128.09,7.8103]
[1742582120066,257.58,128.18,128.07,10.51005509]
[1742582120264,257.58,128.18,128.07,6.5711842]
[1742582120467,0.05534629,128.14,128.11,0.0547951]
[1742582120663,0.05534629,128.14,128.04,1.56201187]
[1742582120858,257.58,128.18,128.04,31.80921506]
[1742582121061,257.58,128.18,128.05,17.09427061]
[1742582121264,335.69712141,128.18,128.0,61.76422784]
[1742582121465,1.4080511,128.17,128.01,17.11853975]
[1742582121959,0.05036457,128.1,128.08,0.05779634]
[1742582122160,257.58,128.09,127.98,257.58]
[1742582122365,257.6,128.09,127.99,6.58663755]
[1742582122666,257.6,128.09,128.0,6.58715112]
[1742582122972,7.8114,128.08,128.03,7.8139]
[1742582123167,0.0535201,128.05,127.98,13.17430225]
[1742582123367,7.8670201,128.05,128.0,7.8158]
[1742582123867,7.8670201,128.05,127.99,10.54172587]
[1742582123868,7.8139,128.04,127.99,7.8166]
[1742582124265,0.0535201,128.05,127.95,31.11826117]
[1742582124471,7.8135,128.05,127.96,6.59159608]
[1742582124767,0.0558032,128.01,127.97,6.59159608]
[1742582124969,2.0311,128.14,128.0,54.39712141]
[1742582125173,2.1139,128.17,128.09,54.3987767]
[1742582125371,257.66,128.2,128.11,51.31148807]
[1742582125972,7.8089,128.12,128.08,59.12268807]
[1742582126171,0.05677031,128.17,128.14,0.05281447]
[1742582126369,257.66,128.2,128.14,0.05013019]
[1742582126564,0.05455418,128.17,128.08,51.31148807]
[1742582126773,51.31148807,128.19,128.07,51.31148807]
[1742582126976,51.31148807,128.17,128.05,51.31148807]
[1742582127278,51.31148807,128.17,128.06,6.59058116]
[1742582127279,7.8106,128.1,128.06,6.59058116]
[1742582127482,257.66,128.14,128.06,6.59058116]
[1742582127684,257.66,128.14,128.06,17.14136909]
[1742582127685,0.05339634,128.09,128.06,17.14136909]
[1742582127876,15.5976,128.29,128.08,51.31148807]
[1742582128173,257.68,128.26,128.15,51.31148807]
[1742582128675,51.31148807,128.24,128.12,51.31148807]
[1742582129079,0.05732789,128.18,128.16,0.05119789]
[1742582129373,0.05732789,128.18,128.09,51.31148807]
[1742582129580,0.05732789,128.18,128.06,52.87325599]
[1742582129581,51.31148807,128.18,128.06,52.87325599]
[1742582129781,7.8092,128.12,128.07,17.14701508]
[1742582129970,51.31148807,128.18,128.07,24.95851508]
[1742582130177,51.31148807,128.18,128.08,6.5950058]
[1742582130373,0.0588462,128.14,128.04,51.31148807]
[1742582130569,257.68,128.13,128.05,6.59964443]
[1742582130771,0.05684496,128.1,128.05,6.59964443]
[1742582130971,257.68,128.24,128.09,51.31148807]
[1742582131171,257.68,128.24,128.14,51.31148807]
[1742582131579,257.68,128.24,128.14,59.11888807]
[1742582131779,257.68,128.24,128.14,51.31148807]
[1742582132277,0.05129697,128.19,128.17,0.05404736]
[1742582133285,0.05129697,128.19,128.17,7.85974736]
[1742582133579,0.05129697,128.19,128.17,0.05404736]
[1742582134082,261.8999,128.29,128.18,51.31148807]
[1742582134286,7.8013,128.25,128.2,59.11528807]
[1742582134488,261.8999,128.29,128.2,51.31148807]
[1742582134987,7.8009,128.26,128.21,7.803]
[1742582135182,7.8009,128.26,128.23,51.36834664]
[1742582135183,0.05112917,128.26,128.23,51.36834664]
[1742582135386,257.66,128.29,128.25,7.8005]
[1742582135587,0.05806194,128.26,128.23,51.36998172]
[1742582135784,0.05806194,128.26,128.23,51.31148807]
[1742582135983,0.05806194,128.26,128.25,7.8004]
[1742582136182,0.05806194,128.26,128.23,51.36502974]
[1742582137189,265.3356,128.34,128.29,7.7982]
[1742582137681,257.54,128.34,128.24,51.31148807]
[1742582137882,257.54,128.34,128.25,6.54089165]
[1742582138089,308.85148807,128.34,128.25,6.54089165]
[1742582138282,0.05512265,128.31,128.28,0.05778423]
[1742582138684,0.05512265,128.31,128.23,51.31148807]
[1742582138878,51.31148807,128.3,128.18,92.05889463]
[1742582139079,51.31148807,128.26,128.19,17.04857498]
[1742582139284,257.54,128.25,128.18,40.74740656]
[1742582139484,257.54,128.25,128.19,6.55234893]
[1742582139687,257.54,128.25,128.18,40.74740656]
[1742582139889,0.05315339,128.23,128.21,0.04933219]
[1742582140088,62.0,128.29,128.22,68.34047946]
[1742582140288,7.7997,128.28,128.23,17.02899139]
[1742582140489,62.0,128.29,128.19,7.42484449]
[1742582140786,319.52,128.29,128.2,17.061841]
[1742582140993,7.8018,128.24,128.21,17.061841]
[1742582141194,0.05897436,128.26,128.23,0.05828296]
[1742582141390,319.52,128.29,128.19,10.51948995]
[1742582141594,0.05376772,128.25,128.23,0.0500367]
[1742582142297,7.8016,128.24,128.23,0.0500367]
[1742582142492,0.05376772,128.25,128.17,7.42484449]
[1742582142693,51.31148807,128.28,128.18,10.42834609]
[1742582142894,51.31148807,128.28,128.19,10.42834609]
[1742582143189,257.52,128.34,128.25,51.31148807]
[1742582143594,257.52,128.34,128.26,10.26419525]
[1742582143794,257.52,128.34,128.28,0.05673748]
[1742582143996,0.05559601,128.31,128.28,0.05673748]
[1742582144593,0.05559601,128.31,128.28,51.36822555]
[1742582144794,0.05559601,128.31,128.29,17.93470382]
[1742582144991,0.05559601,128.31,128.3,10.26265527]
[1742582145191,0.05559601,128.31,128.3,25.85906041]
[1742582145402,0.05559601,128.31,128.3,18.06116041]
[1742582145701,0.05559601,128.31,128.3,10.26265527]
[1742582146101,62.0,128.38,128.3,17.92685968]
[1742582146402,62.0,128.38,128.31,69.35874669]
[1742582146601,62.0,128.38,128.31,7.78460335]
[1742582146802,7.7967,128.32,128.31,7.78460335]
[1742582147004,62.0,128.38,128.3,10.24356673]
[1742582147205,7.7979,128.3,128.29,7.78460335]
[1742582147504,7.7979,128.3,128.24,51.31148807]
[1742582147505,0.05473997,128.33,128.25,18.03155923]
[1742582147692,7.7985,128.29,128.28,0.06010591]
[1742582147898,257.4,128.35,128.28,0.06010591]
[1742582147899,0.05563413,128.3,128.28,0.06010591]
[1742582148099,257.4,128.35,128.28,0.06010591]
[1742582148298,0.05921828,128.3,128.28,0.06010591]
[1742582148496,257.4,128.35,128.28,0.06010591]
[1742582148700,0.05106137,128.3,128.28,0.06010591]